fUST/lending_fUST_20250429
["ID","MTS","AMOUNT","RATE_DAILY","PERIOD"]
[359310680,1745907044357,-500.0,0.00026034,2]
[359310681,1745907044366,-500.0,0.00026034,2]
[359310682,1745907044376,-270.2772552,0.00026034,2]
[359310694,1745907046249,-229.7227448,0.00026034,2]
[359310695,1745907046259,-500.0,0.00026034,2]
[359310696,1745907046269,-500.0,0.00026034,2]
[359310697,1745907046279,-500.0,0.00026034,2]
[359310698,1745907046288,-500.0,0.00026034,2]
[359310699,1745907046298,-42.18645511,0.00026034,2]
[359310724,1745907848650,1000.0,0.00027397,30]
[359310732,1745908095766,785.42130864,0.000125,2]
[359310759,1745908232493,-1000.0,0.00024754,2]
[359310760,1745908232504,-160.0,0.00024827,2]
[359310761,1745908232513,-3147.4658686,0.00026,2]
[359310762,1745908232522,-500.0,0.00026575,2]
[359310763,1745908232532,-1200.0,0.00026848,2]
[359310764,1745908232541,-201.59178923,0.000269,7]
[359310765,1745908232551,-229.64089642,0.00026941,2]
[359310766,1745908232561,-325.269382,0.00027397,2]
[359310767,1745908232570,-300.0,0.0002749,2]
[359310768,1745908232579,-201.59178916,0.00027491,7]
[359310769,1745908232588,-152.0,0.00027865,2]
[359310770,1745908232597,-201.59178916,0.00028082,7]
[359310771,1745908232606,-844.38,0.000281,2]
[359310772,1745908232616,-15605.04810604,0.0002828,2]
[359310773,1745908232626,-201.59178916,0.00028673,8]
[359310774,1745908232635,-194.0,0.00028993,2]
[359310775,1745908232646,-300.0,0.00028993,2]
[359310776,1745908232655,-300.0,0.00028993,2]
[359310777,1745908232665,-3799.7452285,0.00028996,2]
[359310778,1745908232675,-421.28334683,0.00029018,2]
[359310779,1745908232684,-179.83814567,0.00029068,3]
[359310780,1745908232693,-160.365574,0.00029079,2]
[359310781,1745908232703,-1680.0,0.00029159,2]
[359310782,1745908232713,-201.59178916,0.00029264,8]
[359310783,1745908232722,-408.62914725,0.00029315,5]
[359310784,1745908232732,-330.26710325,0.00029593,2]
[359310785,1745908232741,-500.0,0.000296,5]
[359310786,1745908232750,-500.0,0.000296,5]
[359310787,1745908232759,-500.0,0.000296,5]
[359310788,1745908232769,-501.68700575,0.000296,5]
[359310789,1745908232779,-421.11597353,0.000296,5]
[359310790,1745908232788,-160.48912844,0.000296,2]
[359310791,1745908232798,-506.91972126,0.000296,5]
[359310792,1745908232807,-420.0,0.00029705,2]
[359310793,1745908232816,-201.59178916,0.00029855,8]
[359310794,1745908232825,-508.80671182,0.00030067,5]
[359310795,1745908232835,-500.0,0.00030133,5]
[359310796,1745908232844,-500.0,0.00030133,2]
[359310797,1745908232854,-500.0,0.00030133,5]
[359310798,1745908232864,-503.7967001,0.00030133,5]
[359310799,1745908232873,-500.0,0.00030133,5]
[359310800,1745908232882,-500.0,0.00030133,5]
[359310801,1745908232891,-296.95425994,0.00030133,5]
[359310802,1745908232900,-500.0,0.000304,5]
[359310803,1745908232909,-500.0,0.000304,5]
[359310804,1745908232919,-201.59178916,0.00030445,9]
[359310805,1745908232928,-500.0,0.0003085,5]
[359310806,1745908232937,-206.89777438,0.00030864,2]
[359310807,1745908232945,-501.68492946,0.00030873,5]
[359310808,1745908232953,-201.59178916,0.00031036,9]
[359310809,1745908232961,-420.0,0.0003128,2]
[359310810,1745908232969,-201.59178916,0.00031627,10]
[359310811,1745908232977,-654.0,0.00031668,3]
[359310812,1745908232986,-19449.3946139,0.00031671,2]
[359310813,1745908232995,-500.0,0.00031673,5]
[359310814,1745908233004,-201.59178916,0.00032218,10]
[359310815,1745908233012,-247.579,0.0003235,32]
[359310816,1745908233021,-201.59178916,0.00032809,10]
[359310817,1745908233030,-325.269382,0.00033165,2]
[359310818,1745908233254,-201.59178916,0.000334,11]
[359310819,1745908233264,-587.0,0.00033748,2]
[359310820,1745908233274,-201.59178916,0.00033991,11]
[359310821,1745908233284,-201.59178916,0.00034582,12]
[359310822,1745908233293,-3189.48815851,0.000349,90]
[359310823,1745908233303,-1000.0,0.00035079,5]
[359310824,1745908233316,-201.59178916,0.00035173,12]
[359310825,1745908233326,-1000.0,0.00035613,5]
[359310826,1745908233336,-1000.0,0.00035613,5]
[359310827,1745908233346,-201.59178916,0.00035764,12]
[359310828,1745908233356,-1000.0,0.00035879,5]
[359310829,1745908233366,-201.59178916,0.00036355,13]
[359310830,1745908233375,-420.0,0.00036411,2]
[359310831,1745908233384,-713.61,0.00036712,58]
[359310832,1745908233397,-342.257165,0.00036859,4]
[359310833,1745908233405,-159.588481,0.00036862,30]
[359310834,1745908233414,-713.61,0.00036862,79]
[359310835,1745908233423,-201.59178916,0.00036945,13]
[359310836,1745908233433,-713.61,0.00037012,62]
[359310837,1745908233442,-1000.0,0.00037152,5]
[359310838,1745908233451,-713.61,0.00037162,42]
[359310839,1745908233460,-713.61,0.00037312,70]
[359310840,1745908233469,-713.61,0.00037462,56]
[359310841,1745908233478,-201.59178916,0.00037536,13]
[359310842,1745908233487,-713.61,0.00037612,65]
[359310843,1745908233496,-713.61,0.00037762,82]
[359310844,1745908233506,-713.61,0.00037912,62]
[359310845,1745908233515,-713.61,0.00038062,84]
[359310846,1745908233524,-201.59178916,0.00038127,14]
[359310847,1745908233534,-713.61,0.00038212,77]
[359310848,1745908233543,-2533.14,0.000383,7]
[359310849,1745908233553,-203.14463899,0.00038356,2]
[359310850,1745908233562,-500.0,0.00038361,15]
[359310851,1745908233571,-500.0,0.00038361,15]
[359310852,1745908233581,-500.0,0.00038361,2]
[359310853,1745908233590,-500.0,0.00038361,15]
[359310854,1745908233599,-226.37871427,0.00038361,15]
[359310855,1745908233609,-500.0,0.00038361,15]
[359310856,1745908233619,-561.75497039,0.00038361,2]
[359310857,1745908233628,-500.0,0.00038361,2]
[359310858,1745908233637,-336.74634971,0.00038361,15]
[359310859,1745908233648,-500.0,0.00038361,2]
[359310860,1745908233658,-500.0,0.00038361,2]
[359310861,1745908233667,-500.0,0.00038361,2]
[359310862,1745908233676,-500.0,0.00038361,2]
[359310863,1745908233685,-500.0,0.00038361,2]
[359310864,1745908233695,-500.0,0.00038361,2]
[359310865,1745908233704,-500.0,0.00038361,2]
[359310866,1745908233714,-713.61,0.00038362,120]
[359310867,1745908233723,-151.0,0.000385,14]
[359310868,1745908233733,-154.140392,0.000385,14]
[359310869,1745908233743,-713.61,0.00038512,120]
[359310870,1745908233752,-318.05006284,0.00038606,2]
[359310871,1745908233761,-39739.24134168,0.00038621,12]
[359310879,1745908238479,-2319.77854392,0.00038621,12]
[359310911,1745908240980,-130716.66039527,0.00038621,12]
[359311098,1745908244588,-88540.25971913,0.00038621,12]
[359311099,1745908244598,-713.61,0.00038662,120]
[359311100,1745908244607,-201.59178916,0.00038718,14]
[359311101,1745908244617,-713.61,0.00038812,120]
[359311102,1745908244626,-207.4,0.00038921,12]
[359311103,1745908244636,-151.0,0.00038921,12]
[359311104,1745908244645,-325.269382,0.00038933,2]
[359311105,1745908244655,-713.61,0.00038962,120]
[359311106,1745908244664,-501.17337227,0.00038973,5]
[359311107,1745908244674,-200.0,0.0003899,120]
[359311108,1745908244683,-421.28334683,0.0003899,3]
[359311109,1745908244692,-64817.00043107,0.00039,10]
[359311110,1745908244701,-151.0,0.00039,14]
[359311111,1745908244710,-151.0,0.00039,14]
[359311112,1745908244719,-151.0,0.00039,14]
[359311113,1745908244729,-157.2502195,0.00039052,30]
[359311114,1745908244738,-713.61,0.00039112,120]
[359311115,1745908244748,-1253.89388694,0.00039212,2]
[359311116,1745908244757,-1253.89388692,0.00039247,2]
[359311117,1745908244767,-713.61,0.00039262,120]
[359311118,1745908244776,-1253.89388692,0.00039282,2]
[359311119,1745908244785,-201.59178916,0.00039309,15]
[359311120,1745908244795,-152.8326381,0.00039312,120]
[359311121,1745908244804,-152.8326381,0.00039312,120]
[359311122,1745908244813,-152.8326381,0.00039312,120]
[359311123,1745908244824,-152.8326381,0.00039312,120]
[359311124,1745908244833,-152.8326381,0.00039312,120]
[359311125,1745908244842,-152.8326381,0.00039312,120]
[359311126,1745908244852,-152.8326381,0.00039312,120]
[359311127,1745908244861,-152.8326381,0.00039312,120]
[359311128,1745908244871,-152.8326381,0.00039312,120]
[359311129,1745908244881,-152.8326381,0.00039312,120]
[359311130,1745908244890,-152.8326381,0.00039312,120]
[359311131,1745908244900,-152.8326381,0.00039312,120]
[359311132,1745908244912,-152.8326381,0.00039312,120]
[359311133,1745908244922,-152.8326381,0.00039312,120]
[359311134,1745908244931,-152.83,0.00039312,120]
[359311135,1745908244940,-267.45711668,0.00039312,120]
[359311136,1745908244950,-267.45711668,0.00039312,120]
[359311137,1745908244959,-267.45711668,0.00039312,120]
[359311138,1745908244968,-267.45711668,0.00039312,120]
[359311139,1745908244977,-267.45711668,0.00039312,120]
[359311140,1745908244986,-267.45711668,0.00039312,120]
[359311141,1745908244995,-267.45711668,0.00039312,120]
[359311142,1745908245004,-267.45711668,0.00039312,120]
[359311143,1745908245013,-267.45711668,0.00039312,120]
[359311144,1745908245021,-267.45711668,0.00039312,120]
[359311145,1745908245030,-267.45711668,0.00039312,120]
[359311146,1745908245038,-267.45711668,0.00039312,120]
[359311147,1745908245046,-267.45711668,0.00039312,120]
[359311148,1745908245054,-267.45711668,0.00039312,120]
[359311149,1745908245061,-267.45711668,0.00039312,120]
[359311150,1745908245069,-267.45711668,0.00039312,120]
[359311151,1745908245076,-267.45711668,0.00039312,120]
[359311152,1745908245084,-267.45711668,0.00039312,120]
[359311153,1745908245092,-267.45711668,0.00039312,120]
[359311154,1745908245101,-267.45,0.00039312,120]
[359311155,1745908245110,-159.61747829,0.00039312,120]
[359311156,1745908245119,-159.61747829,0.00039312,120]
[359311157,1745908245129,-159.61747829,0.00039312,120]
[359311158,1745908245138,-159.61747829,0.00039312,120]
[359311159,1745908245147,-159.61747829,0.00039312,120]
[359311160,1745908245158,-159.61747829,0.00039312,120]
[359311161,1745908245168,-159.61747829,0.00039312,120]
[359311162,1745908245178,-159.61747829,0.00039312,120]
[359311163,1745908245187,-159.61747829,0.00039312,120]
[359311167,1745908245406,-159.61747829,0.00039312,120]
[359311168,1745908245416,-159.61747829,0.00039312,120]
[359311169,1745908245426,-159.61747829,0.00039312,120]
[359311170,1745908245436,-159.61747829,0.00039312,120]
[359311171,1745908245446,-159.61747829,0.00039312,120]
[359311172,1745908245456,-159.61747829,0.00039312,120]
[359311173,1745908245465,-159.61747829,0.00039312,120]
[359311174,1745908245475,-159.61747829,0.00039312,120]
[359311175,1745908245484,-159.61747829,0.00039312,120]
[359311176,1745908245494,-159.61747829,0.00039312,120]
[359311177,1745908245503,-159.61,0.00039312,120]
[359311178,1745908245513,-372.44078267,0.00039312,120]
[359311179,1745908245523,-372.44078267,0.00039312,120]
[359311180,1745908245532,-372.44078267,0.00039312,120]
[359311181,1745908245542,-372.44078267,0.00039312,120]
[359311182,1745908245551,-372.44078267,0.00039312,120]
[359311183,1745908245561,-372.44078267,0.00039312,120]
[359311184,1745908245570,-372.44078267,0.00039312,120]
[359311185,1745908245579,-372.44078267,0.00039312,120]
[359311186,1745908245589,-372.44078267,0.00039312,120]
[359311187,1745908245599,-372.44078267,0.00039312,120]
[359311188,1745908245608,-372.44078267,0.00039312,120]
[359311189,1745908245617,-372.44078267,0.00039312,120]
[359311190,1745908245627,-372.44078267,0.00039312,120]
[359311191,1745908245636,-372.44078267,0.00039312,120]
[359311192,1745908245646,-372.44078267,0.00039312,120]
[359311193,1745908245658,-372.44078267,0.00039312,120]
[359311194,1745908245668,-372.44078267,0.00039312,120]
[359311195,1745908245677,-372.44078267,0.00039312,120]
[359311196,1745908245686,-372.44078267,0.00039312,120]
[359311197,1745908245696,-372.44,0.00039312,120]
[359311198,1745908245706,-296.49798354,0.00039312,120]
[359311199,1745908245716,-296.49798354,0.00039312,120]
[359311200,1745908245726,-296.49798354,0.00039312,120]
[359311201,1745908245736,-296.49798354,0.00039312,120]
[359311202,1745908245745,-296.49798354,0.00039312,120]
[359311203,1745908245755,-296.49798354,0.00039312,120]
[359311204,1745908245763,-296.49798354,0.00039312,120]
[359311205,1745908245772,-296.49798354,0.00039312,120]
[359311206,1745908245781,-296.49798354,0.00039312,120]
[359311207,1745908245791,-296.49798354,0.00039312,120]
[359311208,1745908245800,-296.49798354,0.00039312,120]
[359311209,1745908245810,-296.49798354,0.00039312,120]
[359311210,1745908245819,-296.49798354,0.00039312,120]
[359311211,1745908245829,-296.49798354,0.00039312,120]
[359311212,1745908245839,-296.49798354,0.00039312,120]
[359311213,1745908245848,-296.49798354,0.00039312,120]
[359311214,1745908245857,-296.49798354,0.00039312,120]
[359311215,1745908245867,-296.49798354,0.00039312,120]
[359311216,1745908245876,-296.49798354,0.00039312,120]
[359311217,1745908245886,-296.49,0.00039312,120]
[359311218,1745908245896,-691.82862826,0.00039312,120]
[359311219,1745908245908,-691.82862826,0.00039312,120]
[359311220,1745908245918,-691.82862826,0.00039312,120]
[359311221,1745908245927,-691.82862826,0.00039312,120]
[359311222,1745908245937,-691.82862826,0.00039312,120]
[359311223,1745908245947,-691.82862826,0.00039312,120]
[359311224,1745908245956,-691.82862826,0.00039312,120]
[359311225,1745908245967,-691.82862826,0.00039312,120]
[359311226,1745908245976,-691.82862826,0.00039312,120]
[359311227,1745908245986,-691.82862826,0.00039312,120]
[359311228,1745908245995,-691.82862826,0.00039312,120]
[359311229,1745908246005,-691.82862826,0.00039312,120]
[359311230,1745908246014,-691.82862826,0.00039312,120]
[359311231,1745908246024,-691.82862826,0.00039312,120]
[359311232,1745908246034,-691.82862826,0.00039312,120]
[359311233,1745908246044,-691.82862826,0.00039312,120]
[359311234,1745908246054,-691.82862826,0.00039312,120]
[359311235,1745908246063,-691.82862826,0.00039312,120]
[359311236,1745908246073,-691.82862826,0.00039312,120]
[359311237,1745908246083,-691.82,0.00039312,120]
[359311238,1745908246092,-313.35099139,0.00039312,120]
[359311239,1745908246102,-1253.89388692,0.00039317,2]
[359311240,1745908246112,-1253.89388692,0.00039352,2]
[359311241,1745908246121,-2000.0,0.000394,24]
[359311242,1745908246131,-2000.0,0.000394,24]
[359311243,1745908246142,-151.0,0.000394,11]
[359311244,1745908246152,-151.0,0.000394,20]
[359311245,1745908246162,-151.0,0.000394,19]
[359311246,1745908246172,-151.0,0.00039412,14]
[359311247,1745908246182,-713.61,0.00039412,120]
[359311248,1745908246191,-151.0,0.00039413,14]
[359311250,1745908246201,-151.0,0.0003944,14]
[359311251,1745908246211,-151.0,0.0003944,14]
[359311252,1745908246220,-232.858469,0.0003944,14]
[359311253,1745908246230,-151.0,0.0003944,14]
[359311254,1745908246240,-151.0,0.0003944,14]
[359311255,1745908246250,-151.0,0.0003944,14]
[359311256,1745908246259,-151.0,0.0003944,14]
[359311257,1745908246269,-151.0,0.0003944,14]
[359311258,1745908246279,-151.0,0.0003944,14]
[359311259,1745908246289,-151.0,0.0003944,14]
[359311260,1745908246298,-151.0,0.0003944,14]
[359311261,1745908246309,-421.28334683,0.0003944,7]
[359311262,1745908246322,-151.0,0.0003944,14]
[359311263,1745908246332,-151.0,0.0003944,14]
[359311264,1745908246341,-151.0,0.0003944,14]
[359311265,1745908246350,-151.0,0.0003944,14]
[359311266,1745908246359,-151.0,0.0003944,14]
[359311267,1745908246369,-151.0,0.0003944,14]
[359311268,1745908246379,-151.0,0.0003944,14]
[359311269,1745908246389,-254.436626,0.0003944,14]
[359311270,1745908246399,-151.0,0.0003944,14]
[359311271,1745908246411,-151.0,0.0003944,14]
[359311272,1745908246421,-151.0,0.0003944,14]
[359311273,1745908246431,-151.0,0.0003944,14]
[359311274,1745908246440,-151.0,0.0003944,14]
[359311275,1745908246450,-151.0,0.0003944,14]
[359311276,1745908246460,-151.0,0.0003944,14]
[359311277,1745908246470,-151.0,0.0003944,14]
[359311278,1745908246479,-151.0,0.0003944,14]
[359311279,1745908246488,-151.0,0.0003944,14]
[359311280,1745908246498,-151.0,0.0003944,14]
[359311281,1745908246507,-151.0,0.0003944,14]
[359311282,1745908246516,-151.0,0.0003944,14]
[359311283,1745908246525,-151.0,0.0003944,14]
[359311284,1745908246534,-235.569155,0.0003944,14]
[359311285,1745908246543,-170.193873,0.0003944,14]
[359311286,1745908246552,-170.193873,0.0003944,14]
[359311287,1745908246562,-170.193873,0.0003944,14]
[359311288,1745908246571,-170.193873,0.0003944,14]
[359311289,1745908246581,-170.193873,0.0003944,14]
[359311290,1745908246591,-170.193873,0.0003944,14]
[359311291,1745908246600,-170.193873,0.0003944,14]
[359311292,1745908246609,-170.193873,0.0003944,14]
[359311293,1745908246619,-170.193873,0.0003944,14]
[359311294,1745908246629,-170.193873,0.0003944,14]
[359311295,1745908246638,-170.193873,0.0003944,14]
[359311296,1745908246647,-170.193873,0.0003944,14]
[359311297,1745908246658,-170.193873,0.0003944,14]
[359311298,1745908246668,-170.193873,0.0003944,14]
[359311299,1745908246677,-151.0,0.0003944,14]
[359311300,1745908246686,-151.0,0.0003944,14]
[359311301,1745908246695,-151.0,0.0003944,14]
[359311302,1745908246706,-229.408192,0.0003944,14]
[359311303,1745908246715,-151.387481,0.0003944,14]
[359311304,1745908246724,-151.387481,0.0003944,14]
[359311305,1745908246734,-151.387481,0.0003944,14]
[359311306,1745908246744,-151.387481,0.0003944,14]
[359311307,1745908246753,-151.387481,0.0003944,14]
[359311308,1745908246763,-151.387481,0.0003944,14]
[359311309,1745908246772,-151.387481,0.0003944,14]
[359311310,1745908246782,-151.0,0.0003944,14]
[359311311,1745908246792,-151.0,0.0003944,14]
[359311312,1745908246801,-151.387481,0.0003944,14]
[359311313,1745908246810,-153.078631,0.0003944,14]
[359311314,1745908246819,-151.387481,0.0003944,14]
[359311315,1745908246829,-151.387481,0.0003944,14]
[359311316,1745908246838,-151.387481,0.0003944,14]
[359311317,1745908246847,-151.387481,0.0003944,14]
[359311318,1745908246856,-151.387481,0.0003944,14]
[359311319,1745908246866,-151.387481,0.0003944,14]
[359311320,1745908246875,-675.350889,0.0003944,14]
[359311321,1745908246885,-675.350889,0.0003944,14]
[359311322,1745908246894,-675.350889,0.0003944,14]
[359311323,1745908246905,-675.350889,0.0003944,14]
[359311324,1745908246915,-675.350889,0.0003944,14]
[359311325,1745908246924,-675.350889,0.0003944,14]
[359311326,1745908246933,-675.350889,0.0003944,14]
[359311327,1745908246942,-151.0,0.00039442,14]
[359311328,1745908246951,-151.0,0.00039442,14]
[359311329,1745908246961,-153.111817,0.00039442,14]
[359311330,1745908246970,-151.0,0.00039442,14]
[359311331,1745908246979,-151.0,0.00039442,14]
[359311332,1745908246989,-170.193873,0.00039442,14]
[359311333,1745908246998,-170.193873,0.00039442,14]
[359311334,1745908247007,-151.0,0.00039443,14]
[359311335,1745908247016,-151.0,0.00039443,14]
[359311336,1745908247025,-151.0,0.00039443,14]
[359311337,1745908247035,-151.0,0.00039443,14]
[359311338,1745908247045,-151.0,0.00039443,14]
[359311339,1745908247054,-151.0,0.00039443,14]
[359311340,1745908247063,-151.0,0.00039443,14]
[359311341,1745908247073,-151.0,0.00039443,14]
[359311342,1745908247082,-151.0,0.00039443,14]
[359311343,1745908247091,-151.0,0.00039443,14]
[359311344,1745908247101,-151.0,0.00039443,14]
[359311345,1745908247110,-151.0,0.00039443,14]
[359311346,1745908247120,-252.240911,0.00039443,14]
[359311347,1745908247130,-151.0,0.00039443,14]
[359311348,1745908247139,-151.0,0.00039443,14]
[359311349,1745908247149,-151.0,0.00039443,14]
[359311350,1745908247160,-151.0,0.00039443,14]
[359311351,1745908247170,-151.0,0.00039443,14]
[359311352,1745908247179,-151.0,0.00039443,14]
[359311353,1745908247188,-151.0,0.00039443,14]
[359311354,1745908247198,-151.0,0.00039443,14]
[359311355,1745908247207,-173.627464,0.00039443,14]
[359311356,1745908247216,-151.0,0.00039443,14]
[359311357,1745908247226,-151.0,0.00039443,14]
[359311358,1745908247236,-151.0,0.00039443,14]
[359311359,1745908247245,-170.193873,0.00039443,14]
[359311360,1745908247254,-170.193873,0.00039443,14]
[359311361,1745908247264,-151.0,0.00039443,14]
[359311362,1745908247273,-151.0,0.00039443,14]
[359311363,1745908247282,-151.387481,0.00039443,14]
[359311364,1745908247291,-162.870648,0.00039443,14]
[359311365,1745908247301,-151.387481,0.00039443,14]
[359311366,1745908247311,-162.870648,0.00039443,14]
[359311367,1745908247323,-151.0,0.00039443,14]
[359311368,1745908247332,-151.0,0.00039443,14]
[359311369,1745908247342,-675.350889,0.00039443,14]
[359311370,1745908247351,-675.350889,0.00039443,14]
[359311371,1745908247361,-151.0,0.00039443,14]
[359311372,1745908247370,-151.0,0.00039443,14]
[359311373,1745908247379,-151.0,0.00039443,14]
[359311374,1745908247389,-151.0,0.00039443,14]
[359311375,1745908247399,-165.224075,0.00039443,14]
[359311376,1745908247410,-151.0,0.00039443,14]
[359311377,1745908247419,-151.0,0.00039443,14]
[359311378,1745908247429,-151.0,0.00039443,2]
[359311379,1745908247439,-151.0,0.00039443,2]
[359311380,1745908247448,-395.07087,0.00039443,14]
[359311381,1745908247458,-151.0,0.00039443,14]
[359311382,1745908247468,-192.203621,0.00039443,14]
[359311383,1745908247480,-222.96588,0.00039443,14]
[359311384,1745908247489,-222.96588,0.00039443,14]
[359311385,1745908247499,-151.0,0.00039443,14]
[359311386,1745908247508,-274.26841,0.00039443,14]
[359311387,1745908247517,-274.26841,0.00039443,14]
[359311388,1745908247526,-151.0,0.00039443,14]
[359311389,1745908247536,-171.127464,0.00039443,14]
[359311390,1745908247545,-171.127464,0.00039443,14]
[359311391,1745908247554,-151.0,0.00039443,14]
[359311392,1745908247563,-151.0,0.00039443,14]
[359311393,1745908247572,-162.444372,0.00039443,14]
[359311394,1745908247581,-151.0,0.00039443,14]
[359311395,1745908247590,-162.444372,0.00039443,14]
[359311396,1745908247599,-151.0,0.00039443,14]
[359311397,1745908247609,-151.0,0.00039443,14]
[359311398,1745908247618,-151.0,0.00039451,14]
[359311399,1745908247628,-151.0,0.00039451,14]
[359311400,1745908247638,-151.0,0.00039451,14]
[359311401,1745908247648,-379.573078,0.00039451,14]
[359311402,1745908247657,-379.573078,0.00039451,14]
[359311403,1745908247667,-151.0,0.00039451,14]
[359311404,1745908247676,-151.0,0.00039451,2]
[359311405,1745908247686,-151.0,0.00039451,14]
[359311406,1745908247695,-151.0,0.00039451,14]
[359311407,1745908247704,-4986.22579677,0.00039452,2]
[359311408,1745908247713,-151.0,0.00039452,14]
[359311409,1745908247723,-151.0,0.00039452,14]
[359311410,1745908247732,-151.0,0.00039452,14]
[359311411,1745908247741,-151.0,0.00039452,14]
[359311412,1745908247751,-151.0,0.00039452,14]
[359311413,1745908247760,-151.0,0.00039452,14]
[359311414,1745908247770,-151.0,0.00039452,14]
[359311415,1745908247779,-170.700971,0.00039452,14]
[359311416,1745908247788,-162.870648,0.00039452,14]
[359311417,1745908247797,-162.870648,0.00039452,14]
[359311418,1745908247807,-162.870648,0.00039452,14]
[359311419,1745908247816,-162.870648,0.00039452,14]
[359311420,1745908247825,-162.870648,0.00039452,14]
[359311421,1745908247835,-162.870648,0.00039452,14]
[359311422,1745908247844,-162.870648,0.00039452,14]
[359311423,1745908247853,-162.870648,0.00039452,14]
[359311424,1745908247862,-162.870648,0.00039452,14]
[359311425,1745908247871,-162.870648,0.00039452,14]
[359311426,1745908247881,-162.870648,0.00039452,14]
[359311427,1745908247890,-162.870648,0.00039452,14]
[359311428,1745908247899,-162.870648,0.00039452,14]
[359311429,1745908247909,-162.870648,0.00039452,14]
[359311430,1745908247919,-151.0,0.00039452,14]
[359311431,1745908247929,-151.0,0.00039452,14]
[359311432,1745908247938,-151.0,0.00039452,14]
[359311433,1745908247947,-151.0,0.00039452,14]
[359311434,1745908247956,-151.0,0.00039452,14]
[359311435,1745908247965,-151.0,0.00039452,14]
[359311436,1745908247975,-151.0,0.00039452,14]
[359311437,1745908247984,-151.0,0.00039452,14]
[359311438,1745908247994,-151.0,0.00039452,14]
[359311439,1745908248003,-151.0,0.00039452,14]
[359311440,1745908248012,-151.0,0.00039452,14]
[359311441,1745908248022,-151.0,0.00039452,14]
[359311442,1745908248031,-151.0,0.00039452,14]
[359311443,1745908248041,-151.619246,0.00039452,14]
[359311444,1745908248050,-151.0,0.00039452,14]
[359311445,1745908248059,-151.0,0.00039452,14]
[359311446,1745908248069,-151.0,0.00039452,14]
[359311447,1745908248079,-151.0,0.00039452,14]
[359311448,1745908248088,-151.0,0.00039452,14]
[359311449,1745908248098,-151.0,0.00039452,14]
[359311450,1745908248107,-151.0,0.00039452,14]
[359311451,1745908248117,-151.0,0.00039452,14]
[359311452,1745908248127,-151.0,0.00039452,14]
[359311453,1745908248137,-182.190988,0.00039452,14]
[359311454,1745908248146,-151.0,0.00039452,14]
[359311455,1745908248157,-151.0,0.00039452,14]
[359311456,1745908248167,-151.0,0.00039452,14]
[359311457,1745908248176,-151.0,0.00039452,14]
[359311458,1745908248186,-151.0,0.00039452,14]
[359311459,1745908248195,-151.0,0.00039452,14]
[359311460,1745908248205,-151.0,0.00039452,14]
[359311461,1745908248213,-151.0,0.00039452,14]
[359311462,1745908248222,-151.0,0.00039452,14]
[359311463,1745908248231,-151.0,0.00039452,14]
[359311464,1745908248240,-151.0,0.00039452,14]
[359311465,1745908248248,-151.0,0.00039452,14]
[359311466,1745908248258,-151.0,0.00039452,14]
[359311467,1745908248266,-151.0,0.00039452,14]
[359311468,1745908248275,-151.0,0.00039452,14]
[359311469,1745908248284,-151.0,0.00039452,14]
[359311470,1745908248294,-187.974376,0.00039452,14]
[359311471,1745908248303,-151.0,0.00039452,2]
[359311472,1745908248316,-151.0,0.00039452,2]
[359311473,1745908248325,-151.0,0.00039452,2]
[359311474,1745908248335,-151.0,0.00039452,2]
[359311475,1745908248344,-151.0,0.00039452,2]